lending/lending_fUSD_20260222
["ID","MTS","AMOUNT","RATE_DAILY","PERIOD"]
[406315260,1771723844402,-450667.87756511,0.000429,2]
[406315261,1771723844440,-259.39905185,0.000429,2]
[406315262,1771723844543,-519.84136943,0.00041102,28]
[406315263,1771723844553,-4266.10513661,0.000429,2]
[406315264,1771723844564,-13530.54079869,0.000429,2]
[406315265,1771723844575,-562.39994,0.000429,2]
[406315266,1771723844586,-345.0,0.000429,2]
[406315267,1771723844597,-2000.1049965,0.000429,2]
[406315268,1771723844608,-1000.0,0.000429,2]
[406315289,1771723942845,-300.0,0.00017998,2]
[406315290,1771723942867,-500.0,0.00017999,2]
[406315291,1771723942889,-500.0,0.00017999,2]
[406315292,1771723942911,-500.0,0.00017999,2]
[406315293,1771723942932,-500.0,0.00017999,2]
[406315294,1771723942954,-500.0,0.00017999,2]
[406315295,1771723942975,-500.0,0.00017999,2]
[406315296,1771723942997,-500.0,0.00017999,2]
[406315297,1771723943018,-500.0,0.00017999,2]
[406315298,1771723943041,-500.0,0.00017999,2]
[406315299,1771723943065,-500.0,0.00017999,2]
[406315300,1771723943087,-500.0,0.00017999,2]
[406315301,1771723943109,-500.0,0.00017999,2]
[406315302,1771723943131,-511.95732454,0.00017999,2]
[406315303,1771723943154,-514.66919889,0.00017999,2]
[406315304,1771724044210,423.52398404,0.00017999,2]
[406315305,1771724086627,500.0,0.00017999,2]
[406315306,1771724087079,20.84469253,0.00017999,2]
[406315307,1771724138947,-300.0,0.00017998,2]
[406315308,1771724161215,300.0,0.00017998,2]
[406315309,1771724161685,300.0,0.00017998,2]
[406315313,1771724281188,193.75766452,0.00017998,2]
[406315318,1771724537356,306.15,0.00013089,2]
[406315335,1771725032230,-403.32000001,0.00017998,2]
[406315336,1771725032283,-796.67999999,0.00017998,2]
[406315337,1771725032293,-303.0,0.00017998,2]
[406315338,1771725032302,-331.60898751,0.00017999,2]
[406315339,1771725032313,-147.54631996,0.00017999,2]
[406315340,1771725032323,-230.69139451,0.00017999,2]
[406315341,1771725032334,-269.30860549,0.00017999,2]
[406315342,1771725032343,-500.0,0.00017999,2]
[406315343,1771725032353,-500.0,0.00017999,2]
[406315344,1771725032362,-500.0,0.00017999,2]
[406315345,1771725032371,-500.0,0.00017999,2]
[406315346,1771725032380,-211.14640207,0.00017999,2]
[406315347,1771725032390,-500.0,0.00017999,2]
[406315348,1771725032400,-500.0,0.00017999,2]
[406315349,1771725032410,-500.0,0.00017999,2]
[406315350,1771725032419,-500.0,0.00017999,2]
[406315351,1771725032428,-500.0,0.00017999,2]
[406315352,1771725032438,-500.0,0.00017999,2]
[406315354,1771725032447,-500.0,0.00018358,2]
[406315355,1771725032457,-500.0,0.0001854,2]
[406315356,1771725032466,-501.0909607,0.0001854,2]
[406315357,1771725032475,-333.94416864,0.0001854,2]
[406315358,1771725032485,-500.0,0.0001854,2]
[406315359,1771725032494,-162.52171303,0.0001854,2]
[406315360,1771725032503,-173.74378417,0.00019023,2]
[406315361,1771725032513,-500.0,0.00019088,2]
[406315362,1771725032522,-516.45912901,0.00019088,2]
[406315363,1771725032531,-253.11161565,0.00019798,2]
[406315364,1771725032540,-360.0,0.0002,120]
[406315365,1771725032553,-360.0,0.0002,120]
[406315366,1771725032562,-290.0,0.0002,30]
[406315367,1771725032571,-200.0,0.00020647,5]
[406315368,1771725032580,-500.0,0.00020999,2]
[406315369,1771725032590,-239.04610872,0.00020999,2]
[406315370,1771725032600,-500.0,0.00020999,2]
[406315371,1771725032609,-500.0,0.00022999,2]
[406315372,1771725032619,-500.0,0.00022999,2]
[406315373,1771725032628,-500.0,0.00022999,2]
[406315374,1771725032637,-500.0,0.00022999,2]
[406315375,1771725032646,-200.0,0.00023157,7]
[406315376,1771725032655,-200.0,0.00025666,11]
[406315377,1771725032664,-263.27795728,0.0002737,2]
[406315378,1771725032673,-928.44,0.000275,15]
[406315379,1771725032683,-200.0,0.00028176,16]
[406315380,1771725032692,-299.41,0.00028534,2]
[406315381,1771725032701,-159.38,0.00029093,2]
[406315382,1771725032710,-692.9,0.00029539,2]
[406315383,1771725032719,-562.55037749,0.00029999,8]
[406315384,1771725032729,-500.0,0.00029999,8]
[406315385,1771725032738,-500.0,0.00029999,8]
[406315386,1771725032747,-200.0,0.00030685,25]
[406315387,1771725032757,-166.66,0.00030754,30]
[406315388,1771725032766,-166.66,0.00031402,30]
[406315389,1771725032775,-520.92,0.00031444,2]
[406315390,1771725032784,-1000.0,0.00031445,2]
[406315391,1771725032794,-436.26,0.00031485,2]
[406315392,1771725032803,-306.7551253,0.00031623,3]
[406315393,1771725032812,-166.66,0.00032049,30]
[406315394,1771725032821,-4233.09,0.00032344,2]
[406315395,1771725032831,-26988.38660969,0.00032459,2]
[406315396,1771725032864,-552.44969957,0.00032459,2]
[406315398,1771725038308,-1653.69369074,0.00032459,2]
[406315399,1771725038318,-500.0,0.00032473,2]
[406315400,1771725038329,-166.66,0.00032697,30]
[406315401,1771725038338,-692.9,0.00032963,2]
[406315402,1771725038347,-1852.42,0.00032979,2]
[406315403,1771725038357,-200.0,0.00033195,36]
[406315404,1771725038367,-166.66,0.00033344,30]
[406315405,1771725038377,-155.91,0.00033648,91]
[406315406,1771725038387,-1342.253,0.00033872,2]
[406315407,1771725038397,-618.0,0.00033872,2]
[406315408,1771725038406,-1040.0,0.00033872,2]
[406315409,1771725038416,-1276.0,0.00033872,2]
[406315410,1771725038425,-150.0,0.00033872,2]
[406315411,1771725038434,-2454.0,0.00033872,2]
[406315412,1771725038443,-282.444,0.00033872,2]
[406315413,1771725038452,-166.66,0.00033992,30]
[406315414,1771725038462,-152.81,0.00034355,2]
[406315415,1771725038471,-1000.0,0.00034428,20]
[406315416,1771725038481,-1232.808,0.00034428,38]
[406315417,1771725038490,-165.818,0.00034428,38]
[406315418,1771725038500,-500.0,0.00034726,4]
[406315419,1771725038509,-500.0,0.00034726,4]
[406315420,1771725038519,-500.0,0.00034726,4]
[406315421,1771725038528,-500.0,0.00034726,4]
[406315422,1771725038538,-150.0,0.00034726,4]
[406315423,1771725038550,-551.0,0.00034726,4]
[406315424,1771725038559,-500.0,0.00034726,4]
[406315425,1771725038568,-500.0,0.00034726,4]
[406315426,1771725038578,-500.0,0.00034726,4]
[406315427,1771725038589,-150.0,0.00034726,4]
[406315428,1771725038598,-500.0,0.00034726,4]
[406315429,1771725038608,-500.0,0.00034781,4]
[406315430,1771725038619,-500.0,0.00034781,4]
[406315431,1771725038633,-500.0,0.00034781,4]
[406315432,1771725038643,-500.0,0.00034781,4]
[406315433,1771725038653,-150.0,0.00034781,4]
[406315434,1771725038663,-551.0,0.00034781,4]
[406315435,1771725038672,-500.0,0.00034781,4]
[406315437,1771725038683,-500.0,0.00034781,4]
[406315439,1771725038694,-500.0,0.00034781,4]
[406315441,1771725038704,-150.0,0.00034781,4]
[406315442,1771725038715,-500.0,0.00034781,4]
[406315445,1771725038725,-500.0,0.00034836,4]
[406315446,1771725038738,-483.80584168,0.00034836,4]
[406315449,1771725038748,-290.09277498,0.00034836,4]
[406315451,1771725038758,-500.0,0.00034836,4]
[406315453,1771725038769,-150.0,0.00034836,4]
[406315455,1771725038778,-551.0,0.00034836,4]
[406315457,1771725038787,-500.0,0.00034836,4]
[406315460,1771725038797,-500.0,0.00034836,4]
[406315463,1771725038808,-500.0,0.00034836,4]
[406315466,1771725038817,-243.04540211,0.00034836,4]
[406315469,1771725038826,-500.0,0.00034836,4]
[406315472,1771725038836,-501.78000743,0.0003489,4]
[406315474,1771725038846,-500.0,0.0003489,4]
[406315476,1771725038856,-150.0,0.0003489,4]
[406315477,1771725038868,-551.0,0.0003489,4]
[406315479,1771725038877,-500.0,0.0003489,4]
[406315482,1771725038887,-500.0,0.0003489,4]
[406315484,1771725038897,-508.25487042,0.0003489,4]
[406315485,1771725038906,-500.0,0.0003489,4]
[406315488,1771725038916,-500.0,0.00034945,4]
[406315490,1771725038925,-269.76419533,0.00034945,4]
[406315492,1771725038936,-551.0,0.00034945,4]
[406315494,1771725038945,-500.0,0.00034945,4]
[406315496,1771725038954,-500.0,0.00034945,4]
[406315498,1771725038963,-500.0,0.00034945,4]
[406315500,1771725038973,-500.0,0.00035,4]
[406315502,1771725038982,-551.0,0.00035,4]
[406315504,1771725038992,-500.0,0.00035,4]
[406315506,1771725039001,-500.0,0.00035,4]
[406315508,1771725039010,-500.0,0.00035,4]
[406315510,1771725039020,-500.0,0.00035055,4]
[406315512,1771725039030,-551.0,0.00035055,4]
[406315513,1771725039039,-282.72637635,0.00035055,4]
[406315515,1771725039049,-186.3630407,0.00035055,4]
[406315518,1771725039059,-509.21693646,0.00035055,4]
[406315520,1771725039068,-1000.0,0.0003507,2]
[406315522,1771725039078,-1000.0,0.0003507,2]
[406315523,1771725039087,-1000.0,0.0003507,2]
[406315526,1771725039097,-1051.23489928,0.0003507,2]
[406315528,1771725039107,-1500.0,0.00035094,120]
[406315529,1771725039116,-5160.0,0.000351,5]
[406315530,1771725039127,-500.0,0.0003511,4]
[406315531,1771725039137,-551.0,0.0003511,4]
[406315532,1771725039147,-500.0,0.00035164,4]
[406315533,1771725039156,-551.0,0.00035164,4]
[406315534,1771725039166,-500.0,0.00035219,4]
[406315535,1771725039175,-551.0,0.00035219,4]
[406315536,1771725039184,-500.0,0.00035274,4]
[406315537,1771725039193,-551.0,0.00035274,4]
[406315538,1771725039202,-391.55913116,0.00035329,4]
[406315539,1771725039212,-551.0,0.00035329,4]
[406315540,1771725039221,-1000.0,0.00035375,2]
[406315541,1771725039230,-551.0,0.00035384,4]
[406315542,1771725039239,-551.0,0.00035438,4]
[406315543,1771725039248,-551.0,0.00035493,4]
[406315544,1771725039257,-551.0,0.00035548,4]
[406315545,1771725039266,-263.27795728,0.00035589,30]
[406315546,1771725039275,-551.0,0.00035603,4]
[406315547,1771725039284,-551.0,0.00035658,4]
[406315548,1771725039293,-200.0,0.00035704,45]
[406315549,1771725039303,-500.0,0.00035792,8]
[406315550,1771725039311,-196.0,0.00036059,30]
[406315551,1771725039320,-166.66,0.00036248,2]
[406315552,1771725039329,-3697.98,0.00036259,2]
[406315553,1771725039339,-692.9,0.00036388,2]
[406315554,1771725039348,-200.0,0.00036466,2]
[406315555,1771725039357,-800.0,0.000366,13]
[406315556,1771725039366,-1700.0,0.000367,13]
[406315557,1771725039375,-2500.0,0.000368,13]
[406315558,1771725039384,-1339.0,0.00036872,2]
[406315559,1771725039394,-1040.0,0.00036872,2]
[406315560,1771725039406,-1276.0,0.00036872,2]
[406315561,1771725039415,-1100.968,0.00036872,2]
[406315562,1771725039424,-3400.0,0.000369,13]
[406315563,1771725039434,-433.8035,0.00036917,2]
[406315564,1771725039443,-411.4592,0.00036917,2]
[406315565,1771725039452,-1214.74290367,0.00036917,2]
[406315566,1771725039461,-1979.55194254,0.00036917,2]
[406315567,1771725039471,-1858.96862346,0.00036917,2]
[406315568,1771725039481,-152.86675252,0.00036989,30]
[406315569,1771725039491,-176.43743981,0.00037,2]
[406315570,1771725039502,-3551.99826947,0.00037,2]
[406315571,1771725039512,-1922.90011374,0.00037,2]
[406315572,1771725039523,-341.74823722,0.00037,2]
[406315573,1771725039536,-173.79996241,0.00037,2]
[406315574,1771725039550,-191.00630535,0.00037,7]
[406315575,1771725039559,-500.0,0.00037006,15]
[406315576,1771725039568,-272.84138943,0.00037006,15]
[406315577,1771725039577,-385.88474336,0.00037007,2]
[406315578,1771725039587,-385.88474336,0.00037007,2]
[406315579,1771725039596,-496.06,0.00037007,2]
[406315580,1771725039605,-496.06,0.00037007,2]
[406315581,1771725039615,-496.06,0.00037007,2]
[406315582,1771725039625,-496.06,0.00037007,2]
[406315583,1771725039635,-496.06,0.00037007,2]
[406315584,1771725039645,-321.11013897,0.00037016,15]
[406315585,1771725039654,-500.0,0.00037016,15]
[406315586,1771725039663,-194.41273185,0.00037016,15]
[406315587,1771725039672,-500.0,0.00037016,15]
[406315588,1771725039681,-500.0,0.00037016,15]
[406315589,1771725039690,-500.0,0.00037016,15]
[406315590,1771725039699,-500.0,0.00037016,15]
[406315591,1771725039708,-248.02171125,0.00037016,15]
[406315592,1771725039717,-500.0,0.00037016,15]
[406315593,1771725039726,-500.0,0.00037016,15]
[406315594,1771725039736,-500.0,0.00037016,15]
[406315595,1771725039745,-500.0,0.00037016,15]
[406315596,1771725039754,-500.0,0.00037016,15]
[406315597,1771725039763,-500.0,0.00037016,15]
[406315598,1771725039772,-500.0,0.00037016,15]
[406315599,1771725039781,-500.0,0.00037016,15]
[406315600,1771725039790,-500.0,0.00037016,15]
[406315601,1771725039800,-300.0,0.00037016,10]
[406315602,1771725039809,-300.0,0.00037016,10]
[406315603,1771725039818,-666.0,0.00037016,30]
[406315604,1771725039828,-2008.35528613,0.00037016,120]
[406315605,1771725039837,-1102412.54265729,0.00037017,2]
[406315606,1771725039858,-302.38540097,0.00037017,2]
[406315607,1771725039875,-1086.8797393,0.00037017,2]
[406315608,1771725039887,-1229.93522621,0.00037017,2]
[406315609,1771725040504,-1945.034,0.00033872,2]
[406315610,1771725040514,-551.0,0.00035712,4]
[406315611,1771725040525,-2700.966,0.00037017,2]
[406315612,1771725040539,-955546.87712349,0.00037017,2]
[406315613,1771725040719,-895.86335176,0.00037017,2]
[406315614,1771725040878,-551.0,0.00035767,4]
[406315615,1771725040888,-2787.78006525,0.00037017,2]
[406315619,1771725045396,-551.0,0.00035822,4]
[406315620,1771725045406,-54.59005591,0.00035877,4]
[406315621,1771725045656,-496.40994409,0.00035877,4]
[406315622,1771725045666,-13252.04996025,0.00037017,2]
[406315623,1771725045677,-2219.31848434,0.00037017,2]
[406315624,1771725045687,-344.0,0.00037017,2]
[406315625,1771725046190,-5531.0,0.00037017,2]
[406315626,1771725046247,-1222.0,0.00037017,2]
[406315627,1771725046404,-28044.31898827,0.00037017,2]
[406315628,1771725046459,-1130.72000027,0.00037017,2]
[406315629,1771725046471,-727.594,0.00037017,2]
[406315632,1771726117639,396.45023063,0.00013417,2]
[406315633,1771726121460,1655.66,0.00015,2]
[406315638,1771726231462,-173.74378417,0.00023644,2]
[406315639,1771726231472,-150.0,0.00023874,2]
[406315640,1771726231481,-200.0,0.00023993,9]
[406315641,1771726231491,-150.0,0.00023999,30]
[406315642,1771726231500,-203.0,0.00023999,2]
[406315643,1771726231509,-300.0,0.00023999,2]
[406315644,1771726231519,-300.0,0.00023999,2]
[406315645,1771726231530,-1005.71918405,0.00024,2]
[406315646,1771726231543,-938.55,0.00024,2]
[406315647,1771726231555,-552.05808685,0.00024,2]
[406315648,1771726231571,-1947.69223446,0.00024,2]
[406315660,1771726237631,-276.58532423,0.00024,2]
[406315663,1771726239621,-373.5644,0.00024,2]
[406315665,1771726239632,-857.81402166,0.00024,2]
[406315666,1771726239678,-931.70647987,0.00024,2]
[406315667,1771726239883,-2564.22631656,0.00024,2]
[406315668,1771726240093,-395.472,0.00024,2]
[406315669,1771726240104,-176.5485727,0.00024,2]
[406315670,1771726240114,-150.075,0.00025,2]
[406315671,1771726240126,-200.0,0.00025484,11]
[406315672,1771726240135,-561.36297042,0.000261,2]
[406315673,1771726240146,-2068.7973222,0.000261,2]
[406315674,1771726240155,-2921.58515845,0.00026687,2]
[406315675,1771726240167,-2090.40897658,0.00026687,2]
[406315685,1771726242845,-10765.83040648,0.00026687,2]
[406315686,1771726242854,-200.0,0.00027173,14]
[406315687,1771726242863,-200.0,0.00029087,19]
[406315688,1771726242873,-1874.0,0.0002931,2]
[406315689,1771726242881,-228.0,0.00029357,30]
[406315690,1771726242891,-759.0,0.00029368,2]
[406315691,1771726242900,-150.0,0.00029532,30]
[406315692,1771726242909,-218.0,0.00029532,30]
[406315693,1771726242918,-198.0,0.00029532,120]
[406315694,1771726242927,-1418.0,0.00029686,2]
[406315695,1771726242936,-877.0,0.00029746,2]
[406315696,1771726242945,-1464.05,0.00029901,2]
[406315697,1771726242955,-2834.29655906,0.0003032,2]
[406315698,1771726242964,-235.25,0.00030509,2]
[406315699,1771726242974,-383.9,0.00031014,2]
[406315700,1771726242984,-1126.65,0.00031014,10]
[406315701,1771726242994,-200.0,0.00031257,27]
[406315702,1771726243003,-863.60171203,0.0003138,2]
[406315703,1771726243012,-383.9,0.00031422,2]
[406315704,1771726243021,-383.9,0.0003183,2]
[406315705,1771726243031,-685.13473289,0.00032056,2]
[406315706,1771726243040,-383.9,0.00032238,2]
[406315707,1771726243049,-1305.15458988,0.00032555,2]
[406315708,1771726243059,-383.9,0.00032646,2]
[406315709,1771726243068,-300.0,0.00032747,2]
[406315710,1771726243077,-207.45,0.00032783,5]
[406315711,1771726243086,-383.9,0.00033054,2]
[406315712,1771726243095,-2894.87,0.0003307,120]
[406315713,1771726243104,-1311.68,0.00033225,120]
[406315714,1771726243114,-383.9,0.00033462,2]
[406315715,1771726243128,-366.0,0.000335,5]
[406315716,1771726243138,-200.0,0.00033715,37]
[406315717,1771726243149,-383.9,0.0003387,2]
[406315718,1771726243159,-894.80779842,0.00033872,2]
[406315719,1771726243171,-145.19220158,0.00033872,2]
[406315720,1771726243181,-192.94237169,0.00034168,2]
[406315721,1771726243190,-500.0,0.00034177,7]
[406315722,1771726243201,-224.77709728,0.00034177,7]
[406315723,1771726243211,-500.0,0.00034177,7]
[406315724,1771726243220,-485.21766286,0.00034177,7]
[406315725,1771726243232,-14.78233714,0.00034177,7]
[406315726,1771726243243,-500.0,0.00034177,7]
[406315727,1771726243252,-500.0,0.00034177,7]
[406315728,1771726243262,-500.0,0.00034177,7]
[406315729,1771726243271,-500.0,0.00034177,7]
[406315730,1771726243282,-573.61519787,0.00034177,7]
[406315731,1771726243293,-500.0,0.00034177,7]
[406315732,1771726243302,-500.0,0.00034177,7]
[406315733,1771726243312,-1012.28575305,0.00034178,2]
[406315734,1771726243321,-4079.14740318,0.00034178,2]
[406315735,1771726243330,-4358.07838252,0.00034178,2]
[406315736,1771726243378,-19206.94059014,0.00034178,2]
[406315737,1771726245583,-302.0,0.00034178,2]
[406315738,1771726245681,-431.46499944,0.00034178,2]
[406315744,1771727134373,3021.1571712,0.0001358,2]
[406315746,1771727214639,126.73259817,0.000162,5]
[406315751,1771727431511,-708.27235126,0.000162,5]
[406315756,1771727431566,-1929.27379233,0.000162,5]
[406315759,1771727431580,-492.41777302,0.000162,5]
[406315762,1771727431622,-1743.30706224,0.000162,5]
[406315763,1771727431631,-150.0,0.000162,2]
[406315764,1771727431641,-150.0,0.0001676,30]
[406315765,1771727431650,-220.0,0.00017752,3]
[406315766,1771727431659,-241.26035627,0.0002211,2]
[406315767,1771727431669,-1200.0,0.00023499,2]
[406315768,1771727431678,-3367.28136771,0.000235,2]
[406315769,1771727431687,-220.0,0.00023619,8]
[406315770,1771727431697,-1025.97804106,0.00024,2]
[406315771,1771727431707,-300.0,0.00024998,2]
[406315772,1771727431718,-300.0,0.00024998,2]
[406315773,1771727431728,-203.0,0.00024999,2]
[406315774,1771727431738,-1116.42972084,0.00025,2]
[406315775,1771727431748,-207.97918787,0.00025,2]
[406315776,1771727431758,-1788.88729396,0.00025,2]
[406315777,1771727431768,-27544.86583785,0.000264,2]
[406315778,1771727431777,-4122.0987762,0.0002739,2]
[406315779,1771727431786,-201.82726027,0.000275,2]
[406315780,1771727431795,-218.0,0.00028535,30]
[406315781,1771727431804,-258.0,0.00028645,30]
[406315782,1771727431814,-277.16,0.00029502,2]
[406315783,1771727431823,-198.11340609,0.000315,2]
[406315784,1771727431832,-220.0,0.00031806,29]
[406315785,1771727431841,-1000.0,0.0003228,2]
[406315787,1771727431850,-500.0,0.0003273,2]
[406315788,1771727431859,-1000.0,0.00032816,2]
[406315790,1771727431868,-150.0,0.00032926,2]
[406315792,1771727431877,-277.16,0.00032927,2]
[406315793,1771727431886,-1000.0,0.00033075,20]
[406315794,1771727431895,-1500.0,0.00033104,120]
[406315795,1771727431904,-1027.7331876,0.00033175,2]
[406315796,1771727431913,-3292.69154533,0.00033175,2]
[406315797,1771727431924,-666.96670514,0.00033175,2]
[406315798,1771727431939,-266.38014877,0.00033175,2]
[406315799,1771727431951,-250.69066555,0.00033175,2]
[406315800,1771727431974,-1482.9015306,0.00033175,2]
[406315801,1771727431985,-1015.1628788,0.00033175,2]
[406315802,1771727431996,-1933.42515603,0.00033175,2]
[406315803,1771727432006,-873.20778669,0.00033175,2]
[406315804,1771727432017,-1186.8261432,0.00033175,2]
[406315805,1771727432028,-878.47389663,0.00033175,2]
[406315806,1771727432042,-361.04264806,0.00033175,2]
[406315808,1771727437675,-2020.0,0.00033175,2]
[406315809,1771727437730,-1277.27139037,0.00033175,2]
[406315810,1771727437892,-2720.41206023,0.00033175,2]
[406315811,1771727437902,-21937.2363496,0.00033175,2]
[406315812,1771727437910,-2000.0,0.000334,2]
[406315813,1771727437922,-933.65,0.00033437,2]
[406315814,1771727437931,-150.0,0.00033476,2]
[406315815,1771727437940,-150.0,0.00033477,2]
[406315817,1771727437949,-200.866501,0.00033478,2]
[406315818,1771727437958,-400.0,0.000336,12]
[406315820,1771727437967,-800.0,0.000337,12]
[406315822,1771727437976,-176.43743981,0.00033778,2]
[406315824,1771727437985,-3671.23266288,0.00033778,2]
[406315826,1771727437995,-12846.84138334,0.00033778,2]
[406315828,1771727438004,-994.8240825,0.00033778,2]
[406315830,1771727438013,-227.83215816,0.00033778,2]
[406315832,1771727438022,-198.56373152,0.00033778,2]
[406315834,1771727438031,-1319.70129504,0.00033778,2]
[406315836,1771727438040,-173.7999624,0.00033778,2]
[406315838,1771727438050,-1300.0,0.000338,12]
[406315840,1771727438059,-728.47,0.000338,30]
[406315842,1771727438068,-192.94237169,0.00033868,2]
[406315844,1771727438078,-165.03,0.00033876,120]
[406315845,1771727438087,-671.29251992,0.00033877,10]
[406315847,1771727438096,-300.0,0.00033877,10]
[406315849,1771727438106,-300.0,0.00033877,10]
[406315851,1771727438115,-666.0,0.00033877,10]
[406315853,1771727438124,-500.0,0.00033877,7]
[406315855,1771727438133,-157.34396809,0.00033877,7]
[406315858,1771727438142,-500.0,0.00033877,7]
[406315861,1771727438152,-500.0,0.00033877,7]
[406315864,1771727438161,-551.53063851,0.00033877,7]
[406315867,1771727438171,-500.0,0.00033877,7]
[406315870,1771727438180,-500.0,0.00033877,7]
[406315873,1771727438189,-500.0,0.00033877,7]
[406315875,1771727438199,-15361.91202156,0.00033878,2]
[406316025,1771727439850,-989.47071157,0.00033878,2]
[406316044,1771727440009,-67383.47489808,0.00033878,2]
[406316046,1771727440020,-51075.7495951,0.00033878,2]
[406316052,1771727440065,-596.298,0.00033878,2]
[406316071,1771727440225,-1375.24367412,0.00033878,2]
[406316084,1771727440332,-5554.43851537,0.00033878,2]
[406316086,1771727440343,-509.65562623,0.00033878,2]
[406316113,1771727442945,-843.5714609,0.00033778,2]
[406316114,1771727442955,-1253.07917571,0.00033878,2]
[406316115,1771727442966,-5706.705,0.00033878,2]
[406316116,1771727442978,-655.44025574,0.00033878,2]
[406316117,1771727443059,-759.2082173,0.00033878,2]
[406316118,1771727443069,-8012.14879119,0.00033878,2]
[406316135,1771727445541,-1975.5,0.00033878,2]
[406316136,1771727445552,-6506.00362237,0.00033878,2]
[406316137,1771727445807,-4968.58830414,0.00033878,2]
[406316182,1771728631728,-177.0,0.00026801,30]
[406316183,1771728631737,-198.0,0.000273,30]
[406316184,1771728631748,-173.78509278,0.00029802,2]
[406316185,1771728631757,-451.0,0.00029844,2]
[406316186,1771728631767,-1011.0,0.000301,2]
[406316187,1771728631783,-439.923444,0.00032089,30]
[406316188,1771728631798,-341.35,0.00032429,2]
[406316189,1771728631808,-150.0,0.00032482,2]
[406316190,1771728631818,-3240.0,0.00032757,120]
[406316191,1771728631827,-301.0,0.00032849,3]
[406316192,1771728631836,-1600.0,0.00032849,3]
[406316193,1771728631846,-4350.14,0.00032851,2]
[406316194,1771728631855,-250.0,0.00032876,2]
[406316195,1771728631865,-216.75,0.00032921,30]
[406316196,1771728631874,-2338.28,0.00032951,120]
[406316197,1771728631884,-283.70019704,0.00033,7]
[406316198,1771728631899,-536.29980296,0.00033,7]
[406316199,1771728631911,-1325.21,0.00033004,2]
[406316200,1771728631921,-250.0,0.00033063,2]
[406316201,1771728631931,-407.60002407,0.00033076,2]
[406316202,1771728631943,-487.0242411,0.00033076,2]
[406316203,1771728631954,-729.37573483,0.00033076,2]
[406316204,1771728631966,-425.27865682,0.00033142,2]
[406316206,1771728631976,-702.9762174,0.00033378,2]
[406316208,1771728631985,-663.216055,0.00033378,2]
[406316210,1771728631995,-879.80086336,0.00033378,2]
[406316212,1771728632004,-166.66,0.00033457,30]
[406316214,1771728632013,-150.0,0.00033477,2]
[406316215,1771728632023,-203.53780784,0.00033477,3]
[406316216,1771728632032,-4695.54320604,0.00033477,2]
[406316217,1771728632043,-3894.1177145,0.00033477,2]
[406316218,1771728632065,-1623.11679656,0.00033477,2]
[406316219,1771728632075,-7211.0,0.00033477,2]
[406316220,1771728632087,-1230.22,0.00033477,2]
[406316221,1771728632098,-336.37939,0.00033477,2]
[406316222,1771728632109,-500.0,0.00033477,2]
[406316223,1771728632130,-805.74439359,0.00033477,2]
[406316224,1771728632141,-3060.11545845,0.00033477,2]
[406316225,1771728632155,-620.0,0.00033477,2]
[406316234,1771728637836,-956.1785563,0.00033477,2]
[406316235,1771728637892,-64502.03160124,0.00033477,2]
[406316236,1771728637904,-621.77,0.00033477,2]
[406316237,1771728637962,-432.46183533,0.00033477,2]
[406316238,1771728637976,-1298.58005086,0.00033477,2]
[406316239,1771728637987,-36331.28395714,0.00033477,2]
[406316240,1771728638003,-542.34145178,0.00033477,2]
[406316415,1771728639993,-621.01,0.00033477,2]
[406316440,1771728640202,-682.1242808,0.00033477,2]